Cogmind - Beta 16 @@@ ROGUE MODE // 2026.01.22 @ 23:42:25 Player: vorsii Result: Destroyed by H-55 Commando with Assault Rifle Performance ------------- Evolutions (2) 1000 Regions Visited (6) 1200 Robots Destroyed (31) 155 Value Destroyed (988) 988 Prototype IDs (24) 480 Alien Tech Used (0) 0 Bonus (335) 335 TOTAL SCORE: 4158 Bonus ------- Follower Combat Kills 35 Aligned with FarCom 300 Cogmind --------- Core Integrity 0/550 Matter 17/300 Energy 100/100 System Corruption 1% Temperature Cool (0) Movement Core (1400) Ox27 Location -8/Storage Parts ------- > --- POWER (1) -------- (None) > --- PROPULSION (3) --- (None) > --- UTILITY (5) ------ Huge Storage Unit Visual Processing Unit Advanced Targeting Computer ECM Suite > --- WEAPON (2) ------- (None) > --- INVENTORY (25) --- Utility Shielding Recalibrator Recalibrator Army-in-a-Box (30/30) PSU Rigger Heavy EM Pulse Gun Lightning Gun Lightning Gun Lightning Gun Improved Medium Laser Autogun Battle Cannon Flak Cannon Mining Laser Plasma Cutter Longsword +1 Peak State ------------ > --- POWER ------------ Improved Ion Engine > --- PROPULSION ------- Wheel Wheel Compact Wheel > --- UTILITY ---------- Huge Storage Unit Visual Processing Unit Advanced Targeting Computer Melee Analysis Suite Improved Light Armor Plating > --- WEAPON ----------- Lightning Gun Longsword +1 > --- INVENTORY -------- Advanced Targeting Computer Utility Shielding Recalibrator Recalibrator Army-in-a-Box PSU Rigger Heavy EM Pulse Gun Lightning Gun Lightning Gun Improved Medium Laser Improved Medium Laser Autogun Battle Cannon Flak Cannon Flak Cannon Flak Cannon Flak Cannon Flak Cannon Mining Laser Plasma Cutter [Rating: 40] Favorites ----------- Power Light Ion Engine Engine Light Ion Engine Power Core Nuclear Core Propulsion Wheel Wheel Wheel Utility Visual Processing Unit Device ECM Suite Storage Huge Storage Unit Processor Visual Processing Unit Protection Improved Weapon Shielding Weapon Assault Rifle Energy Gun Improved Medium Laser Energy Cannon Beam Cannon Ballistic Gun Assault Rifle Ballistic Cannon Flak Cannon Launcher Grenade Launcher Special Weapon Mining Laser Slashing Weapon Longsword +1 Build | -11 -10 -10 -10 -9 -8 -8 ------- Run | Yrd Mat Min Exi Min Mat Sto Slots Evolved 4 | . . . . . 4 . Power . | . . . . . . . Propulsion 1 | . . . . . 1 . Utility 3 | . . . . . 3 . Weapon . | . . . . . . . Parts Attached 38 | 5 3 1 3 5 20 1 Power 5 | . 1 . . 1 3 . Engine 4 | . 1 . . 1 2 . Core 1 | . . . . . 1 . Reactor . | . . . . . . . Propulsion 4 | 2 . . . 1 1 . Treads . | . . . . . . . Leg . | . . . . . . . Wheel 4 | 2 . . . 1 1 . Hover . | . . . . . . . Flight . | . . . . . . . Utility 15 | 1 1 . 1 1 11 . Device 4 | . . . . . 4 . Storage 3 | 1 . . 1 1 . . Processor 4 | . 1 . . . 3 . Hackware . | . . . . . . . Protection 4 | . . . . . 4 . Artifact . | . . . . . . . Weapon 14 | 2 1 1 2 2 5 1 Energy Gun 2 | . . . . . 2 . Energy Cannon 1 | . . . 1 . . . Ballistic Gun 3 | 2 . . . 1 . . Ballistic Cannon 5 | . . . . 1 3 1 Launcher 1 | . 1 . . . . . Special Weapon 1 | . . 1 . . . . Impact Weapon . | . . . . . . . Slashing Weapon 1 | . . . 1 . . . Piercing Weapon . | . . . . . . . Special Melee Weapon . | . . . . . . . Unidentified Prototypes 1 | . . . . . 1 . Parts Lost 14 | . 3 . . . 4 7 Power 2 | . 1 . . . . 1 Propulsion 4 | . 1 . . . 2 1 Utility 3 | . . . . . 2 1 Weapon 5 | . 1 . . . . 4 Highest Loss Streak 5 | . 3 . . . 2 5 To Critical Strikes . | . . . . . . . Average Backups 9 | . 3 3 3 8 18 17 Power . | . . . . . . . Propulsion . | . . . . . . . Utility 2 | . . . . 2 4 5 Weapon 6 | . 2 3 3 4 12 11 Tool/Special . | . . . . . . . Unused Backups 12 | . . . 1 . 3 8 Power 2 | . . . 1 . 1 . Propulsion . | . . . . . . . Utility 2 | . . . . . . 2 Weapon 7 | . . . . . 2 5 Tool/Special 1 | . . . . . . 1 Average Slot Usage (%) 81 | . 77 60 71 93 93 63 Engine 5 | . 4 . . 13 7 . Wheel 18 | . 27 14 14 22 23 4 Device 1 | . . . . . 3 9 Storage 12 | . 14 14 14 14 9 9 Processor 16 | . 3 14 14 14 24 18 Protection 1 | . . . . . 5 4 Energy Gun 1 | . . . . . 6 . Energy Cannon 4 | . . . 12 . . . Ballistic Gun 9 | . 14 14 14 14 . . Ballistic Cannon 4 | . . . . 7 8 11 Slashing Weapon 2 | . . . 1 6 2 3 Peak Build Rating 40 | 5 8 6 19 23 40 35 Average Rating 18 | 3 5 5 7 18 34 26 On Entrance 12 | . 5 5 6 19 17 35 Avg Prop Armor Cover (%) . | . . . . . . . Naked Turns . | . . . . . . . Heaviest Build 100 | 9 15 8 45 89 100 100 Greatest Support 36 | 20 20 10 10 20 36 10 Greatest Overweight (x) 31 | 1 . . 4 4 9 31 Average Overweight (x) 2 | . . . 3 3 2 12 Largest Inventory Capacity 25 | 8 8 8 20 25 25 25 Average Capacity 20 | 7 8 8 18 23 25 25 Most Carried 25 | 2 4 4 11 14 25 23 Average Carried 12 | 1 3 3 4 13 23 22 Final Capacity 25 | 8 8 8 20 25 25 25 Final Carried 23 | 2 3 3 11 14 23 21 Class Distribution -------------------- 88% | Mutant 11% | Derelict-Mutant Dominant Class ---------------- Mutant | -10/Materials Mutant | -10/Mines Mutant | -10/Exiles Derelict-Mutant | -9/Mines Mutant | -8/Materials Mutant | -8/Storage Resources | -11 -10 -10 -10 -9 -8 -8 ----------- Run | Yrd Mat Min Exi Min Mat Sto Matter Collected 919 | 196 66 33 . 164 432 28 Remotely 114 | . . . . . 114 . Salvage Created 876 | . 123 . . 40 520 193 Parts 48 | . 8 . . 5 30 5 Haulers Intercepted . | . . . . . . . Recyclers Shooed 1 | . . . . . . 1 Parts Field Recycled . | . . . . . . . Retrieved Matter . | . . . . . . . Parts Self-Destructed . | . . . . . . . Prevented . | . . . . . . . Parts Restored . | . . . . . . . Kills | -11 -10 -10 -10 -9 -8 -8 ------- Run | Yrd Mat Min Exi Min Mat Sto Combat Hostiles Destroyed 28 | . 2 . . 3 17 6 Guns 10 | . . . . 3 7 . Cannons 16 | . . . . . 10 6 AOE 2 | . 2 . . . . . Classes Destroyed 6 | . 2 . . 1 1 2 Recycler 1 | . . . . . . 1 Watcher 2 | . 1 . . . 1 . Swarmer 10 | . . . . 3 7 . Grunt 10 | . 2 . . . 5 3 Brawler 1 | . . . . . . 1 Sentry 7 | . . . . . 5 2 Best Kill Streak 5 | . 3 . . 3 5 3 Combat Bots Only 4 | . 2 . . 3 4 3 Max Kills in Single Turn 2 | . 1 . . 1 2 1 Gunslinging . | . . . . . . . Exploded 1 | . 1 . . . . . Melee . | . . . . . . . Uniques/NPCs Destroyed . | . . . . . . . Combat | -11 -10 -10 -10 -9 -8 -8 -------- Run | Yrd Mat Min Exi Min Mat Sto Hostile Shots Fired 209 | . 19 . . 20 77 93 Missed 51 | . 8 . . 7 21 15 Hits 158 | . 11 . . 13 56 78 Projectile 158 | . 11 . . 13 56 78 Critical Strikes 5 | . 1 . . . . 4 Actively Blocked 1 | . . . . . . 1 Part Disruptions 1 | . 1 . . . . . Damage Taken 2184 | . 233 . . 105 749 1097 Core 696 | . 88 . . 49 178 381 Absorbed by Shields . | . . . . . . . Redirected to Shielding 211 | . . . . . 109 102 Core Remaining (%) 72 | 100 . . . 45 . . Volleys Fired 107 | . 8 8 5 7 50 29 Largest 2 | . 2 2 2 1 2 2 Hottest 120 | . 50 120 80 20 93 74 Shots Fired 153 | . 11 10 10 7 76 39 Gun 64 | . 8 3 5 7 41 . Cannon 79 | . . . 5 . 35 39 Launcher 3 | . 3 . . . . . Special 7 | . . 7 . . . . Kinetic 97 | . 8 3 5 7 35 39 Thermal 37 | . . 7 5 . 25 . Explosive 3 | . 3 . . . . . Electromagnetic 16 | . . . . . 16 . Robot Hit Streak 17 | . 2 . . 2 17 10 Robot Miss Streak 7 | . 1 . . 3 7 6 Penetration Max . | . . . . . . . Secondary Targets . | . . . . . . . Shots Hit Robots 97 | . 6 . . 3 52 36 Core Hits 98 | . 5 . . 3 54 36 Critical Kills . | . . . . . . . Critical Parts Destroyed . | . . . . . . . Critical Strikes 3 | . . . . . 3 . Burn 2 | . . . . . 2 . Corrupt 1 | . . . . . 1 . Melee Attacks . | . . . . . . . Impact . | . . . . . . . Slashing . | . . . . . . . Piercing . | . . . . . . . Sneak Attacks . | . . . . . . . Combat Hostiles . | . . . . . . . Follow-up Attacks . | . . . . . . . Damage Inflicted 2108 | . 317 . . 50 1027 714 Guns 538 | . 53 . . 50 435 . Cannons 1306 | . . . . . 592 714 Explosions 264 | . 264 . . . . . Melee . | . . . . . . . Ramming . | . . . . . . . Kinetic 1409 | . 53 . . 50 592 714 Thermal 138 | . . . . . 138 . Explosive 132 | . 132 . . . . . Electromagnetic 429 | . 132 . . . 297 . Impact . | . . . . . . . Slashing . | . . . . . . . Piercing . | . . . . . . . Highest Corruption 1 | . . . . . 1 1 Average Corruption 1 | . . . . . 1 1 Corruption Purged . | . . . . . . . Corruption Blocked . | . . . . . . . Effects 9 | . . . . . 9 . Message Errors 3 | . . . . . 3 . Matter Fused 2 | . . . . . 2 . Energy Discharges 1 | . . . . . 1 . Data Loss (minor) 1 | . . . . . 1 . Data Loss (major) 2 | . . . . . 2 . Overload Shots . | . . . . . . . Overflow Damage 4 | . 3 . . . 1 . Projectiles 1 | . . . . . 1 . Explosions 3 | . 3 . . . . . Melee . | . . . . . . . Knockbacks 11 | . . . . . 5 6 Impact . | . . . . . . . Kinetic 11 | . . . . . 5 6 Secondary . | . . . . . . . Self-Inflicted Damage 80 | . 80 . . . . . Shots 4 | . 4 . . . . . Rammed . | . . . . . . . Targets Rammed . | . . . . . . . Kicked . | . . . . . . . Crushed . | . . . . . . . Highest Temperature 227 | . 5 . 9 . 227 47 Average Temperature 54 | . 3 . 3 . 67 21 Received Heat Transfer 555 | . 105 . . . 216 234 Effects 2 | . . . . . 2 . Energy Bleed 1 | . . . . . 1 . Interference 1 | . . . . . 1 . Siege Activations . | . . . . . . . Martial Activations . | . . . . . . . Shielding Activations . | . . . . . . . Robots Disrupted . | . . . . . . . Combat Hostiles . | . . . . . . . Robots Corrupted . | . . . . . . . Combat Hostiles . | . . . . . . . Parts Fried 3 | . . . . . 3 . Impact Corruptions . | . . . . . . . Robots Melted . | . . . . . . . Combat Hostiles . | . . . . . . . Parts Melted 1 | . . . . . 1 . Heat Transferred 444 | . . . . . 444 . Parts Sabotaged . | . . . . . . . Parts Stolen . | . . . . . . . Parts Stripped . | . . . . . . . Power Chain Reactions 1 | . 1 . . . . . Alert | -11 -10 -10 -10 -9 -8 -8 ------- Run | Yrd Mat Min Exi Min Mat Sto Maximum Alert Level 1 | . . . . . 1 . Low Security (%) 93 | 100 100 100 . 100 85 100 Level 1 6 | . . . . . 14 . Level 2 . | . . . . . . . Level 3 . | . . . . . . . Level 4 . | . . . . . . . Level 5 . | . . . . . . . High Security . | . . . . . . . Max Security . | . . . . . . . Peak Influence 220 | . 181 62 . 70 220 129 Initial 84 | . . 62 . . . 84 Average 65 | . 29 21 . 6 120 90 Influence Increases 989 | . 211 2 . 70 551 155 Destroy 0b10 Robot/C 580 | . 40 . . 60 360 120 Destroy 0b10 Robot/NC 15 | . 5 . . . 5 5 Destroy Leader 144 | . 12 . . 10 92 30 Allied During Kill 3 | . . . . . 3 . Disable Machine 45 | . 30 . . . 15 . Destroy Structure 22 | . 19 2 . . 1 . Lose Combat Pursuer 180 | . 105 . . . 75 . Influence Decreases 910 | . 50 163 . 70 351 276 Entered New Map 215 | . . 99 . . . 116 Time Decay 555 | . 20 64 . 70 311 90 Lost Part 140 | . 30 . . . 40 70 Squads Dispatched 6 | . 1 . . . 4 1 Investigation 1 | . 1 . . . . . Extermination . | . . . . . . . Reinforcement 2 | . . . . . 1 1 Assault . | . . . . . . . Garrison 3 | . . . . . 3 . Intercept . | . . . . . . . Searches Triggered . | . . . . . . . Construction Impeded . | . . . . . . . Haulers Reinforced . | . . . . . . . Active Scanning Responses . | . . . . . . . Cargo Convoy Interrupts . | . . . . . . . Stealth | -11 -10 -10 -10 -9 -8 -8 --------- Run | Yrd Mat Min Exi Min Mat Sto Distress Signals 2 | . . . . . 2 . Communications Jammed . | . . . . . . . Distress Signals . | . . . . . . . Times Spotted 53 | . 13 . . 3 27 10 Peak Tracking Total 7 | . 7 . . 3 5 6 Tactical Retreats 6 | . 2 . . . 3 1 ECM-based Alert Blocks 1 | . . . . . . 1 Traps | -11 -10 -10 -10 -9 -8 -8 ------- Run | Yrd Mat Min Exi Min Mat Sto Traps Triggered 4 | . 1 . . . 3 . Indirectly 1 | . 1 . . . . . Trap Hack Attempts . | . . . . . . . Triggered . | . . . . . . . Disarmed . | . . . . . . . Reprogrammed . | . . . . . . . Reused . | . . . . . . . Traps Extracted . | . . . . . . . Installed . | . . . . . . . Triggered . | . . . . . . . Machines | -11 -10 -10 -10 -9 -8 -8 ---------- Run | Yrd Mat Min Exi Min Mat Sto Machines Disabled 3 | . 2 . . . 1 . Max in Single Turn 2 | . 2 . . . 1 . Machines Repaired . | . . . . . . . Machines Dismantled . | . . . . . . . Machines Sabotaged . | . . . . . . . Overloaded Fab Kills . | . . . . . . . Hacking | -11 -10 -10 -10 -9 -8 -8 --------- Run | Yrd Mat Min Exi Min Mat Sto Machines Accessed 6 | . . . 5 . 1 . Terminals 1 | . . . . . 1 . Fabricators . | . . . . . . . Repair Stations . | . . . . . . . Recycling Units . | . . . . . . . Scanalyzers . | . . . . . . . Garrison Access . | . . . . . . . Total Hacks 52 | . . . 50 . 2 . Successful 52 | . . . 50 . 2 . Failed . | . . . . . . . Catastrophic . | . . . . . . . Database Lockouts . | . . . . . . . Manual 9 | . . . 9 . . . Terminals 2 | . . . . . 2 . Fabricators . | . . . . . . . Repair Stations . | . . . . . . . Recycling Units . | . . . . . . . Scanalyzers . | . . . . . . . Garrison Access . | . . . . . . . Terminal Hacks 52 | . . . 50 . 2 . Record 51 | . . . 49 . 2 . Proto ID Catalog 1 | . . . 1 . . . Fabricator Hacks . | . . . . . . . Repair Station Hacks . | . . . . . . . Recycling Unit Hacks . | . . . . . . . Scanalyzer . | . . . . . . . Garrison Access Hacks . | . . . . . . . Unauthorized Hacks . | . . . . . . . Terminals . | . . . . . . . Fabricators . | . . . . . . . Repair Stations . | . . . . . . . Recycling Units . | . . . . . . . Scanalyzers . | . . . . . . . Garrison Access . | . . . . . . . Data Cores Recovered . | . . . . . . . Used . | . . . . . . . Hacking Detections 1 | . . . . . 1 . Full Trace Events . | . . . . . . . Feedback Events . | . . . . . . . Feedback Blocked . | . . . . . . . Robot Schematics Acquired . | . . . . . . . Robots Built . | . . . . . . . Authchips . | . . . . . . . Time . | . . . . . . . Total Robot Build Rating . | . . . . . . . Part Schematics Acquired . | . . . . . . . Parts Built . | . . . . . . . Authchips . | . . . . . . . Time . | . . . . . . . Total Part Build Rating . | . . . . . . . Part Studies Acquired . | . . . . . . . Parts Repaired . | . . . . . . . Time . | . . . . . . . Parts Recycled . | . . . . . . . Recycled Matter . | . . . . . . . Retrieved Matter . | . . . . . . . Retrieved Components . | . . . . . . . Parts Scanalyzed . | . . . . . . . Part Schematics Acquired . | . . . . . . . Parts Damaged . | . . . . . . . Bothacking | -11 -10 -10 -10 -9 -8 -8 ------------ Run | Yrd Mat Min Exi Min Mat Sto Used RIF Installer . | . . . . . . . Robots Hacked . | . . . . . . . Non-combat . | . . . . . . . Combat . | . . . . . . . Robot Hacks Applied . | . . . . . . . Relay Couplers Released . | . . . . . . . Fabnet Peak Effective % . | . . . . . . . Robots Rewired . | . . . . . . . Allies Hacked . | . . . . . . . Hacks Repelled . | . . . . . . . Allies | -11 -10 -10 -10 -9 -8 -8 -------- Run | Yrd Mat Min Exi Min Mat Sto Total Allies 3 | . . . . 3 . . Largest Group 3 | . . . . 3 3 . Highest-Rated Group 40 | . . . . 40 40 . Highest-Rated Ally 16 | . . . . 16 16 . Total Orders . | . . . . . . . Ally Attacks 4 | . . . . . 4 . Total Damage 44 | . . . . . 44 . Kills 1 | . . . . . 1 . Allies Corrupted . | . . . . . . . Allies Melted . | . . . . . . . Intel | -11 -10 -10 -10 -9 -8 -8 ------- Run | Yrd Mat Min Exi Min Mat Sto Active Infowar (turns) 3517 | . 37 174 1365 774 1028 139 Optics 3517 | . 37 174 1365 774 1028 139 ECM 205 | . . . . . 66 139 Robot Analysis Total . | . . . . . . . Derelict Logs Recovered 4 | . . 1 . 3 . . Drone Launches . | . . . . . . . Drone Recoveries . | . . . . . . . Exploration | -11 -10 -10 -10 -9 -8 -8 ------------- Run | Yrd Mat Min Exi Min Mat Sto Turns Passed 3795 | 42 163 205 1365 774 1055 191 Spaces Moved 2667 | 38 172 197 1047 512 672 29 Core 8 | 3 . . . . . 5 Treads . | . . . . . . . Legs . | . . . . . . . Wheels 2659 | 35 172 197 1047 512 672 24 Hover . | . . . . . . . Flight . | . . . . . . . Fastest Speed 50 | 50 80 80 80 110 116 215 Average Speed 125 | 80 80 80 127 139 124 443 Slowest Speed 1600 | 100 80 80 140 140 215 1600 Overloaded Moves . | . . . . . . . Propulsion Burnouts . | . . . . . . . Robots Hopped . | . . . . . . . Potential Cave-ins . | . . . . . . . Cave-ins Triggered . | . . . . . . . Exploration Rate (%) 40 | 2 18 33 96 78 49 10 Regions Visited 6 Branch Regions 4 Pre-discovered Areas 1 | . . . 1 . . . Known Exits Taken 1 | . . . . 1 . . Unknown Exits Taken 5 | 1 1 1 1 . 1 . Scrap Searched 4 | . . 1 . 3 . . Spaces Dug . | . . . . . . . Terrain Destroyed 22 | . 20 2 . . . . Melee . | . . . . . . . Projectile 2 | . . 2 . . . . AOE 20 | . 20 . . . . . Terrain Rammed . | . . . . . . . Walls Destroyed . | . . . . . . . Machines Disabled . | . . . . . . . Actions | -11 -10 -10 -10 -9 -8 -8 --------- Run | Yrd Mat Min Exi Min Mat Sto Total 2955 | 49 185 220 1065 562 812 62 Wait 69 | . . 14 . 30 24 1 Move 2661 | 37 171 196 1046 511 671 29 Hop . | . . . . . . . Pick Up 49 | 7 3 1 5 7 26 . Fast Attach 5 | . . . . . 5 . Attach 23 | 5 2 1 . 2 11 2 Detach 1 | . . . . . 1 . Swap 22 | . 1 . 3 3 14 1 Drop 14 | . . . 2 2 10 . Fire 107 | . 8 8 5 7 50 29 Melee . | . . . . . . . Ram . | . . . . . . . Kick . | . . . . . . . Crush . | . . . . . . . Escape Stasis . | . . . . . . . Rewire 4 | . . . 4 . . . Trap . | . . . . . . . Miscellaneous . | . . . . . . . Route ------- -11/Scrapyard -10/Materials (discovered 2 exits: [*Mat] / [*Min]) -10/Mines -10/Exiles (discovered 2 exits: [*Min x2]) -9/Mines (discovered 2 exits: *Mat x2) -8/Materials (discovered 3 exits: Fac x2 / [*Sto]) -8/Storage History --------- Turn | Location | Event 26 | -11/Scrapyard | Discovered new exit (range 14) 43 | -11/Scrapyard | Entered Materials 93 | -10/Materials | Discovered new exit (range 12) 141 | -10/Materials | Discovered new exit (range 5) 206 | -10/Materials | Entered Mines 231 | -10/Mines | Lost 3 parts (1p1n1w) 276 | -10/Mines | Learned Materials emergency access door positions 304 | -10/Mines | Build established: Mutant 340 | -10/Mines | Deemed a non-threat by the Exiles lab entrance 341 | -10/Mines | Discovered new exit (range 5) 357 | -10/Mines | Excavation squad dispatched 357 | -10/Mines | A large section of the Mines collapsed 411 | -10/Mines | Entered Exiles 448 | -10/Exiles | Discovered new exit (range 17) 472 | -10/Exiles | Met 8R-AWN 490 | -10/Exiles | Met EX-HEX 530 | -10/Exiles | Met EX-DEC 547 | -10/Exiles | Learned location of Zion (-7) 610 | -10/Exiles | Discovered new exit (range 15) 715 | -10/Exiles | Visited The Gauntlet 952 | -10/Exiles | Met EX-BIN 1526 | -10/Exiles | Aligned with FarCom system 1528 | -10/Exiles | Given EX-Vault access code 1560 | -10/Exiles | Opened EX-Vault 1567 | -10/Exiles | Found Prototype Slashing Weapon 1572 | -10/Exiles | Found Prototype Device 1574 | -10/Exiles | Found Prototype Device 1577 | -10/Exiles | Identified Army-in-a-Box 1577 | -10/Exiles | Identified PSU Rigger 1577 | -10/Exiles | Identified Longsword +1 1606 | -10/Exiles | Warned to stay clear of 0b10 Research branches 1776 | -10/Exiles | Stole three prototypes: Army-in-a-Box, PSU Rigger, Longsword +1 1776 | -10/Exiles | Entered Mines 1783 | -9/Mines | Core integrity fell below 50% 1812 | -9/Mines | Identified exit to Materials 1823 | -9/Mines | Learned location of 1 exit from Proximity Caves 1887 | -9/Mines | Learned location of 2 exits from Materials 2113 | -9/Mines | A weapon hastily lodged in a ceiling crevice suddenly fell to the ground 2142 | -9/Mines | Discovered exit to Materials (range 6) 2220 | -9/Mines | Assisted by bots powering up and referring to "LRC-V3" 2426 | -9/Mines | Build established: Derelict-Mutant 2550 | -9/Mines | Entered Materials 2550 | -8/Materials | Accompanied by 3 allies 2550 | -8/Materials | Evolved 4 slots: Propulsion x1, Utility x3 2551 | -8/Materials | Identified exit to Factory 2748 | -8/Materials | Lost 3 allies 2857 | -8/Materials | Build established: Mutant 2909 | -8/Materials | Garrison activated, responded to threat 3547 | -8/Materials | Discovered new exit (range 8) 3605 | -8/Materials | Entered Storage 3607 | -8/Storage | FarCom data flow suspended 3715 | -8/Storage | Core integrity fell below 50% 3735 | -8/Storage | Core integrity fell below 20% 3758 | -8/Storage | Lost 5 parts (1p1n1u2w) 3796 | -8/Storage | Destroyed by H-55 Commando with Assault Rifle Last Messages --------------- 03773_ K-01 Serf collects debris. 03773_ R-06 Scavenger collects Hammer. 03774_ Slug penetrates Wall. 03776_ U-05 Engineer builds a Wall. 03776_ K-01 Serf collects debris. 03780_ Slug penetrates Wall. 03781_ U-05 Engineer builds a Door. 03783_ H-55 Commando knocked back. 03783_ K-01 Serf collects debris. 03785_ Slug penetrates Wall. 03785_ Flak Cannon destroyed. 03786_ H-55 Commando knocked back. 03786_ K-01 Serf collects debris. 03789_ Slug penetrates Wall. 03789_ K-01 Serf collects debris. 03790_ H-55 Commando knocked back. 03793_ Penetrated by Slug. 03793_ K-01 Serf collects debris. 03796_ Penetrated by Slug. 03796_ Flak Cannon destroyed. Map ----- +----------------------------------------------------+ | ?????????????????????????????????????????? | | ?????????????????????????????????????????? | | ?????????????????????????????????????????? | | ?????????????????????????????????????????? | | ?????????????????????????????????????????? | | ?????????????????????????????????????????? | | ?????????????????????????????????????????? | | ?????????????????????????????????????????? | | ?????????????????????????????????????????? | | ?????????????????????????????????????????? | | ?????????????????????????????????????????? | | ?????????????????????????????????????????? | | ????????????????????? ????????????????? | | ??????? ?####?????? ?????????????????? | | ??????+ ??* ????? ?????????????????? | | ??????# ?? ![ ????? ?????????????????? | | ??????# #?? !????? ??????????????????? | | ??????# #?? ????? ??????????????????? | | ??????# #??? ????? #?+##??????????????? | | ??????# #??? ????? # ???????????????? | | ??????# #####k##### # "????????????????? | | ????### % + ?????????????????? | | ????#"" % % #??????????????????? | | ????#"T % #??????????????????? | | ?????"" !! ]!! #??????????????????? | | ?????## !! @! #??????????????????? | | ?????#T ! u !! ##?????????????????? | | ?????## ######### #?????? | | ??????# !%[ + ????? | | ??????# ######### #?????? | | ??????# ###h####???????????????? | | ??????# + ######## #??????? | | ??????########+#### + +?????? | | ????????????? ???# %#####+## #??????? | | ???????????? ""???# #???????????????? | | ???????????T ""???# #???????????????? | | ??????????## "????# #???????????????? | | ???????????# ?????########???????????????? | | ?????????????????????????????????????????? | | ?????????????????????????????????????????? | | ?????????????????????????????????????????? | | ?????????????????????????????????????????? | | ?????????????????????????????????????????? | | | | | | | | | | | | | | | +----------------------------------------------------+ Best States ------------- Heat Dissipation 31 Energy Generation 14 Energy Capacity 265 Matter Stores 300 Matter Capacity 300 Sight Range 18 Terrain Scan Density 10 ECM Strength 1 Armor Coverage 150 Utility Shielding 33 Weapon Shielding 66 Evasion (%) 44 Targeting Accuracy 16 Melee Accuracy 5 Item Schematics ----------------- None Robot Schematics ------------------ None Fabricated ------------ Nothing Repaired ---------- Nothing Studied --------- None Alien Tech Used ----------------- None Achievements -------------- Morally Flexible More Dakka Please Sixth Sense Tourist Use The Force Challenges ------------ None Game ------ Seed ConstructThrusterMatrix Manual? 0 Play Time 00:53:14 Cumulative 9.2 hours Start 2026.01.22 @ 22:51:00 End 2026.01.22 @ 23:42:25 Sessions 1 Manual Loads 0 Difficulty Rogue Special Mode None Game No. 12 Rogue 12 Adventurer 0 Explorer 0 Win Type - Total 0 Types 0/0/0/0/0/0/0/0/0/0 Lore% 14 Gallery% 9 Achievement% 11 Wizard Run 0 Options --------- Layout 0 ASCII 0 Keyboard 0 Movement Mouse Keybinds 0 Fullscreen 1 Font 36/Smallcaps Map View 76x50 Zoom Use 0% Tactical HUD 1 Map Filters NONE Filters NONE Steam 1 RUN: 21d0ba28-45e0-4647-892e-f936e87e02dc